fUST/lending_fUST_20251224
["ID","MTS","AMOUNT","RATE_DAILY","PERIOD"]
[399598293,1766527125399,-500.0,6.175e-05,2]
[399598294,1766527125434,-650.01878783,6.175e-05,2]
[399598295,1766527125643,-500.0,6.175e-05,2]
[399598296,1766527125677,-500.0,6.175e-05,2]
[399598297,1766527125712,-236.7370444,6.175e-05,2]
[399598298,1766527125747,-500.0,6.175e-05,2]
[399598299,1766527125781,-500.0,6.175e-05,2]
[399598300,1766527125814,-500.0,6.175e-05,2]
[399598301,1766527125848,-500.0,6.175e-05,2]
[399598302,1766527125881,-500.0,6.175e-05,2]
[399598303,1766527125915,-196.6990044,6.175e-05,2]
[399598304,1766527125949,-500.0,6.175e-05,2]
[399598305,1766527125983,-500.0,6.175e-05,2]
[399598306,1766527126069,-500.0,6.175e-05,2]
[399598307,1766527126103,-500.0,6.175e-05,2]
[399598308,1766527126138,-500.0,6.175e-05,2]
[399598309,1766527126174,-500.0,6.175e-05,2]
[399598310,1766527126216,-500.0,6.175e-05,2]
[399598311,1766527126256,-500.0,6.175e-05,2]
[399598312,1766527126292,-500.0,6.175e-05,2]
[399598313,1766527126327,-500.0,6.175e-05,2]
[399598314,1766527126362,-500.0,6.175e-05,2]
[399598315,1766527126789,-354.54551387,6.175e-05,2]
[399598316,1766527126859,-500.0,6.175e-05,2]
[399598317,1766527127777,-8333.48758422,6.176e-05,2]
[399598318,1766527127799,-10000.01,6.176e-05,2]
[399598319,1766527127820,-10000.01,6.176e-05,2]
[399598320,1766527127841,-10000.01,6.176e-05,2]
[399598321,1766527127870,-10000.01,6.176e-05,2]
[399598322,1766527128033,-10000.01,6.176e-05,2]
[399598323,1766527128166,-10000.01,6.176e-05,2]
[399598324,1766527128308,-10000.01,6.176e-05,2]
[399598325,1766527128447,-10000.01,6.176e-05,2]
[399598326,1766527128567,-10000.01,6.176e-05,2]
[399598327,1766527128724,-10000.01,6.176e-05,2]
[399598328,1766527129003,-10000.01,6.176e-05,2]
[399598329,1766527129152,-10000.01,6.176e-05,2]
[399598330,1766527179756,-5000.0,6.115e-05,2]
[399598331,1766527179796,-0.01,6.176e-05,2]
[399598332,1766527179950,-10000.01,6.176e-05,2]
[399598333,1766527180060,-10000.01,6.176e-05,2]
[399598334,1766527180203,-10000.01,6.176e-05,2]
[399598335,1766527180321,-10000.01,6.176e-05,2]
[399598336,1766527180438,-10000.01,6.176e-05,2]
[399598337,1766527180547,-10000.01,6.176e-05,2]
[399598338,1766527180674,-10000.01,6.176e-05,2]
[399598339,1766527180804,-10000.01,6.176e-05,2]
[399598340,1766527182589,-10000.01,6.176e-05,2]
[399598341,1766527185621,-10000.01,6.176e-05,2]
[399598342,1766527185739,-10000.01,6.176e-05,2]
[399598343,1766527185876,-10000.01,6.176e-05,2]
[399598344,1766527186055,-10000.01,6.176e-05,2]
[399598345,1766527186195,-10000.01,6.176e-05,2]
[399598346,1766527186339,-10000.01,6.176e-05,2]
[399598347,1766527186496,-10000.01,6.176e-05,2]
[399598348,1766527186618,-10000.01,6.176e-05,2]
[399598349,1766527191692,-10000.01,6.176e-05,2]
[399598350,1766527198161,-10000.01,6.176e-05,2]
[399598352,1766527295370,10000.01,5.348e-05,2]
[399598353,1766527295396,7635.5362153,5.348e-05,2]
[399598355,1766527311182,-300.0,6.114e-05,2]
[399598357,1766527322312,300.0,6.114e-05,2]
[399598359,1766527382950,300.0,6.114e-05,2]
[399598360,1766527389700,1200.0,6.114e-05,2]
[399598361,1766527400453,5000.0,6.114e-05,2]
[399598362,1766527423297,2600.01,6.114e-05,2]
[399598363,1766527423327,2399.99,6.114e-05,2]
[399598365,1766527446530,5000.0,6.114e-05,2]
[399598366,1766527470483,2600.02,6.114e-05,2]
[399598367,1766527470509,2399.98,6.114e-05,2]
[399598368,1766527493717,5000.0,6.114e-05,2]
[399598373,1766527517678,2600.03,6.114e-05,2]
[399598374,1766527517709,2399.97,6.114e-05,2]
[399598376,1766527540492,5000.0,6.114e-05,2]
[399598377,1766527552372,1017.54541616,0.00014,30]
[399598378,1766527563290,2600.04,6.114e-05,2]
[399598379,1766527563319,2399.96,6.114e-05,2]
[399598380,1766527586013,5000.0,6.114e-05,2]
[399598381,1766527599940,-508.0,6.115e-05,2]
[399598382,1766527608764,5000.0,6.115e-05,2]
[399598384,1766527631720,3984.01,6.115e-05,2]
[399598385,1766527631748,1015.99,6.115e-05,2]
[399598387,1766527654930,5000.0,6.115e-05,2]
[399598388,1766527678747,3984.02,6.115e-05,2]
[399598389,1766527678774,1015.98,6.115e-05,2]
[399598390,1766527701540,5000.0,6.115e-05,2]
[399598391,1766527725295,3984.03,6.115e-05,2]
[399598392,1766527725323,1015.97,6.115e-05,2]
[399598393,1766527748671,5000.0,6.115e-05,2]
[399598394,1766527772500,3984.04,6.115e-05,2]
[399598395,1766527772526,1015.96,6.115e-05,2]
[399598396,1766527795643,5000.0,6.115e-05,2]
[399598398,1766527819152,3984.05,6.115e-05,2]
[399598399,1766527819181,1015.95,6.115e-05,2]
[399598426,1766527831933,-241.9430307,6.158e-05,2]
[399598427,1766527831944,-508.0,6.158e-05,2]
[399598428,1766527831955,-300.0,6.172e-05,2]
[399598429,1766527831965,-250.0,6.173e-05,2]
[399598430,1766527831976,-250.0,6.173e-05,2]
[399598431,1766527831986,-250.0,6.173e-05,2]
[399598432,1766527831995,-250.0,6.173e-05,2]
[399598433,1766527832006,-250.0,6.173e-05,2]
[399598434,1766527832016,-250.0,6.173e-05,2]
[399598435,1766527832027,-250.0,6.173e-05,2]
[399598437,1766527832037,-250.0,6.173e-05,2]
[399598438,1766527832046,-250.0,6.173e-05,2]
[399598439,1766527832056,-250.0,6.173e-05,2]
[399598440,1766527832066,-250.0,6.173e-05,2]
[399598441,1766527832077,-153.99003068,6.173e-05,2]
[399598442,1766527832086,-533.88981491,6.173e-05,2]
[399598443,1766527832096,-500.0,6.173e-05,2]
[399598444,1766527832106,-500.0,6.173e-05,2]
[399598445,1766527832116,-500.0,6.173e-05,2]
[399598446,1766527832126,-500.0,6.173e-05,2]
[399598447,1766527832135,-500.0,6.173e-05,2]
[399598448,1766527832145,-500.0,6.173e-05,2]
[399598449,1766527832155,-202.49842454,6.173e-05,2]
[399598450,1766527832165,-28417.56436171,6.176e-05,2]
[399598451,1766527832177,-858.12873,6.176e-05,2]
[399598497,1766527837954,-300.64585245,6.176e-05,2]
[399598498,1766527838015,-1501.08898084,6.176e-05,2]
[399598499,1766527838027,-1417.25,6.176e-05,2]
[399598500,1766527838123,-22320.21664996,6.176e-05,2]
[399598501,1766527838150,-26029.62281837,6.176e-05,2]
[399598510,1766527840383,-3e-08,6.176e-05,2]
[399598511,1766527840397,-1144.60886202,6.176e-05,2]
[399598512,1766527840411,-3886.74185346,6.176e-05,2]
[399598520,1766527842982,5000.0,6.115e-05,2]
[399598541,1766527866355,3984.06,6.115e-05,2]
[399598542,1766527866385,1015.94,6.115e-05,2]
[399598543,1766527887676,8984.07,6.076e-05,2]
[399598544,1766527887713,10000.01,6.076e-05,2]
[399598545,1766527887749,10000.01,6.076e-05,2]
[399598546,1766527887782,10000.01,6.076e-05,2]
[399598547,1766527887816,10000.01,6.076e-05,2]
[399598548,1766527887849,10000.01,6.076e-05,2]
[399598549,1766527887884,10000.01,6.076e-05,2]
[399598550,1766527887917,10000.01,6.076e-05,2]
[399598551,1766527887950,10000.01,6.076e-05,2]
[399598552,1766527887984,10000.01,6.076e-05,2]
[399598553,1766527888977,-682.26511397,6.076e-05,2]
[399598554,1766527890528,-176.78431186,6.076e-05,2]
[399598555,1766527893540,-335.2996606,6.076e-05,2]
[399598556,1766527895391,-252.64548378,6.076e-05,2]
[399598557,1766527897595,-199.93475873,6.076e-05,2]
[399598558,1766527897708,-9184.53097222,6.076e-05,2]
[399598559,1766527897823,-10000.01,6.076e-05,2]
[399598560,1766527897964,-10000.01,6.076e-05,2]
[399598561,1766527898137,-10000.01,6.076e-05,2]
[399598562,1766527898285,-10000.01,6.076e-05,2]
[399598563,1766527898414,-10000.01,6.076e-05,2]
[399598564,1766527898534,-10000.01,6.076e-05,2]
[399598565,1766527898660,-10000.01,6.076e-05,2]
[399598566,1766527900190,-211.31776359,6.076e-05,2]
[399598567,1766527902851,-183.49966263,6.076e-05,2]
[399598568,1766527904361,-180.59410517,6.076e-05,2]
[399598569,1766527905900,-300.0,6.016e-05,2]
[399598570,1766527906963,-4700.0,6.016e-05,2]
[399598571,1766527907117,-600.01,6.076e-05,2]
[399598572,1766527907147,-10000.01,6.076e-05,2]
[399598573,1766527907165,-10000.01,6.076e-05,2]
[399598574,1766527907185,-10000.01,6.076e-05,2]
[399598575,1766527907224,-10000.01,6.076e-05,2]
[399598576,1766527907340,-10000.01,6.076e-05,2]
[399598577,1766527907381,-448.48447247,6.076e-05,2]
[399598578,1766527907490,-10000.01,6.076e-05,2]
[399598579,1766527907687,-10000.01,6.076e-05,2]
[399598580,1766527909097,-300.0,6.076e-05,2]
[399598581,1766527910481,-300.0,6.076e-05,2]
[399598582,1766527912936,-737.0287028,6.076e-05,2]
[399598583,1766527928428,5000.0,6.046e-05,2]
[399598584,1766527951416,5000.0,6.046e-05,2]
[399598586,1766527974015,0.01,6.046e-05,2]
[399598587,1766527974044,4999.99,6.046e-05,2]
[399598588,1766528005534,-5000.0,6.013e-05,2]
[399598589,1766528019095,0.01,6.046e-05,2]
[399598590,1766528019120,4999.99,6.046e-05,2]
[399598591,1766528041640,3514.76163355,6.013e-05,2]
[399598593,1766528059044,-300.0,6.074e-05,2]
[399598594,1766528059084,-500.0,6.075e-05,2]
[399598595,1766528059116,-500.0,6.075e-05,2]
[399598596,1766528059148,-500.0,6.075e-05,2]
[399598597,1766528059180,-327.15263275,6.075e-05,2]
[399598598,1766528059212,-191.15888159,6.075e-05,2]
[399598599,1766528059245,-500.0,6.075e-05,2]
[399598600,1766528059277,-500.0,6.075e-05,2]
[399598601,1766528059309,-500.0,6.075e-05,2]
[399598602,1766528059339,-580.89453272,6.075e-05,2]
[399598603,1766528059370,-336.003101,6.075e-05,2]
[399598604,1766528060225,-7064.80085194,6.076e-05,2]
[399598605,1766528060242,-10000.01,6.076e-05,2]
[399598606,1766528060257,-10000.01,6.076e-05,2]
[399598607,1766528060287,-10000.01,6.076e-05,2]
[399598608,1766528060315,-10000.01,6.076e-05,2]
[399598609,1766528063216,-10000.01,6.076e-05,2]
[399598610,1766528066365,-10000.01,6.076e-05,2]
[399598611,1766528066508,-10000.01,6.076e-05,2]
[399598612,1766528066631,-10000.01,6.076e-05,2]
[399598613,1766528066768,-10000.01,6.076e-05,2]
[399598614,1766528066915,-10000.01,6.076e-05,2]
[399598615,1766528069383,-10000.01,6.076e-05,2]
[399598616,1766528069655,-10000.01,6.076e-05,2]
[399598617,1766528069772,-10000.01,6.076e-05,2]
[399598618,1766528069980,-10000.01,6.076e-05,2]
[399598619,1766528075784,-5000.0,6.016e-05,2]
[399598620,1766528075832,-0.01,6.076e-05,2]
[399598621,1766528082438,-10000.01,6.076e-05,2]
[399598622,1766528082558,-10000.01,6.076e-05,2]
[399598623,1766528082684,-10000.01,6.076e-05,2]
[399598624,1766528082833,-10000.01,6.076e-05,2]
[399598625,1766528082967,-10000.01,6.076e-05,2]
[399598626,1766528085461,-10000.01,6.076e-05,2]
[399598627,1766528085612,-10000.01,6.076e-05,2]
[399598628,1766528088631,-10000.01,6.076e-05,2]
[399598629,1766528088830,-10000.01,6.076e-05,2]
[399598630,1766528088997,-10000.01,6.076e-05,2]
[399598631,1766528091556,-10000.01,6.076e-05,2]
[399598632,1766528091695,-10000.01,6.076e-05,2]
[399598633,1766528094579,-10000.01,6.076e-05,2]
[399598634,1766528094713,-10000.01,6.076e-05,2]
[399598635,1766528094828,-10000.01,6.076e-05,2]
[399598636,1766528099989,-169.5106173,6.016e-05,2]
[399598637,1766528101444,-613.72974229,6.016e-05,2]
[399598638,1766528102877,-284.39050535,6.016e-05,2]
[399598639,1766528105601,-287.04156794,6.016e-05,2]
[399598640,1766528108135,-347.2075639,6.016e-05,2]
[399598641,1766528109271,-288.01382941,6.016e-05,2]
[399598642,1766528111685,-438.24838184,6.016e-05,2]
[399598643,1766528113793,-300.0,6.016e-05,2]
[399598644,1766528116862,-196.09449518,6.016e-05,2]
[399598645,1766528118919,-270.70932363,6.016e-05,2]
[399598646,1766528120329,-404.72993837,6.016e-05,2]
[399598647,1766528122387,-246.71170381,6.016e-05,2]
[399598648,1766528123893,-377.26215456,6.016e-05,2]
[399598649,1766528129363,-238.01316205,6.016e-05,2]
[399598650,1766528133070,-292.39421842,6.016e-05,2]
[399598652,1766528300458,-5000.0,5.956e-05,2]
[399598653,1766528314425,0.01,6.006e-05,2]
[399598654,1766528314450,1778.49922106,6.006e-05,2]
[399598656,1766528335143,-246.71556781,6.013e-05,2]
[399598657,1766528337032,-168.73784544,6.013e-05,2]
[399598658,1766528339491,-666.0,6.013e-05,2]
[399598659,1766528341877,-450.04624967,6.013e-05,2]
[399598660,1766528343985,-298.31154285,6.013e-05,2]
[399598661,1766528346473,-217.45762535,6.013e-05,2]
[399598662,1766528348688,-379.78237575,6.013e-05,2]
[399598663,1766528350802,-170.28784906,6.013e-05,2]
[399598664,1766528353133,-298.32210853,6.013e-05,2]
[399598665,1766528355638,-184.68968083,6.013e-05,2]
[399598666,1766528357701,-304.62308825,6.013e-05,2]
[399598667,1766528359789,-318.18380445,6.013e-05,2]
[399598668,1766528362904,-176.18888576,6.013e-05,2]
[399598669,1766528364722,-385.76599839,6.013e-05,2]
[399598670,1766528366943,-250.28111604,6.013e-05,2]
[399598671,1766528368441,-378.89501942,6.013e-05,2]
[399598672,1766528425139,-105.7112424,6.013e-05,2]
[399598673,1766528425163,-245.96685961,6.013e-05,2]
[399598674,1766528427566,-221.00356609,6.013e-05,2]
[399598676,1766528435370,5000.0,6.006e-05,2]
[399598677,1766528458139,5000.0,6.006e-05,2]
[399598678,1766528480888,0.01,6.006e-05,2]
[399598679,1766528480918,4999.99,6.006e-05,2]
[399598680,1766528503627,5000.0,6.006e-05,2]
[399598681,1766528527519,0.02,6.006e-05,2]
[399598682,1766528527547,4999.98,6.006e-05,2]
[399598683,1766528542079,10000.01,5.075e-05,2]
[399598684,1766528549611,5000.0,6.006e-05,2]
[399598685,1766528572365,5000.0,6.006e-05,2]
[399598686,1766528595785,0.01,6.006e-05,2]
[399598687,1766528595812,4999.99,6.006e-05,2]
[399598688,1766528620149,5000.0,6.006e-05,2]
[399598689,1766528650795,-257.18022174,5.953e-05,2]
[399598690,1766528652802,-286.37537507,5.953e-05,2]
[399598691,1766528655362,-182.25682745,5.953e-05,2]
[399598692,1766528656434,-517.1763299,5.953e-05,2]
[399598693,1766528657964,-289.10183338,5.953e-05,2]
[399598694,1766528660639,-597.76797159,5.953e-05,2]
[399598695,1766528663108,-402.03578333,5.953e-05,2]
[399598696,1766528665161,-281.81619555,5.953e-05,2]
[399598697,1766528666629,-451.47365391,5.953e-05,2]
[399598698,1766528668833,-317.24804787,5.953e-05,2]
[399598699,1766528671402,-274.63035213,5.953e-05,2]
[399598700,1766528672948,-1137.81588629,5.953e-05,2]
[399598704,1766528795674,-5.12152179,5.953e-05,2]
[399598705,1766528795712,-240.49430116,5.983e-05,2]
[399598706,1766528798439,5000.0,5.893e-05,2]
[399598828,1766528821362,4508.7783541,6.006e-05,2]
[399598829,1766528821397,491.2216459,6.006e-05,2]
[399598830,1766528836951,4999.99,6.006e-05,2]
[399598831,1766528844766,5000.0,6.006e-05,2]
[399598885,1766529032062,-178.553047,5.055e-05,2]
[399598887,1766529032071,-420.57490773,5.946e-05,2]
[399598889,1766529032083,-1541.79337405,5.946e-05,2]
[399598891,1766529032095,-3037.63171822,5.946e-05,2]
[399598893,1766529032106,-505.0,5.946e-05,2]
[399598895,1766529032115,-235.68441514,5.96e-05,2]
[399598897,1766529032125,-300.0,5.974e-05,2]
[399598900,1766529032134,-300.0,5.974e-05,2]
[399598903,1766529032144,-1186.0,5.974e-05,2]
[399598906,1766529032154,-500.0,5.975e-05,2]
[399598909,1766529032163,-500.0,5.975e-05,2]
[399598912,1766529032174,-279.00684292,5.975e-05,2]
[399598915,1766529032183,-500.0,5.975e-05,2]
[399598917,1766529032193,-500.0,5.975e-05,2]
[399598919,1766529032203,-500.0,5.975e-05,2]
[399598920,1766529032213,-500.0,5.975e-05,2]
[399598922,1766529032223,-500.0,5.975e-05,2]
[399598924,1766529032232,-500.0,5.975e-05,2]
[399598926,1766529032242,-222.75599956,5.975e-05,2]
[399598928,1766529032252,-500.0,5.975e-05,2]
[399598930,1766529032261,-500.0,5.975e-05,2]
[399598932,1766529032271,-500.0,5.975e-05,2]
[399598934,1766529032281,-221.28420042,5.975e-05,2]
[399598935,1766529032290,-34822.41133997,5.976e-05,2]
[399599002,1766529040891,-3e-08,5.976e-05,2]
[399599029,1766529047863,-5000.0,5.917e-05,2]
[399599030,1766529053807,-9322.20997115,5.976e-05,2]
[399599031,1766529070180,-459.018156,5.857e-05,2]
[399599032,1766529074014,-225.24738894,5.857e-05,2]
[399599033,1766529075733,-219.25225268,5.857e-05,2]
[399599034,1766529077737,-300.0,5.857e-05,2]
[399599035,1766529079218,-226.21579331,5.857e-05,2]
[399599036,1766529081844,-209.2122901,5.857e-05,2]
[399599037,1766529083373,-193.41387737,5.857e-05,2]
[399599038,1766529084887,-431.44154948,5.857e-05,2]
[399599039,1766529087425,-719.7160594,5.857e-05,2]
[399599040,1766529089009,-295.10314127,5.857e-05,2]
[399599041,1766529090457,-302.72125128,5.857e-05,2]
[399599042,1766529095411,-226.00278585,5.857e-05,2]
[399599043,1766529096997,-158.05747073,5.857e-05,2]
[399599044,1766529099663,-235.1273795,5.857e-05,2]
[399599045,1766529102216,-275.09166051,5.857e-05,2]
[399599046,1766529103631,-310.48744673,5.857e-05,2]
[399599048,1766529263698,5000.0,5.847e-05,2]
[399599049,1766529271884,5000.0,5.847e-05,2]
[399599050,1766529302457,610.45929162,0.000154,120]
[399599051,1766529302687,300.0,7.598e-05,120]
[399599052,1766529304422,300.0,7.598e-05,120]
[399599053,1766529306131,300.0,7.598e-05,120]
[399599054,1766529307282,-377.35054331,5.856e-05,2]
[399599055,1766529307850,300.0,7.598e-05,120]
[399599056,1766529309800,300.0,7.598e-05,120]
[399599057,1766529311902,300.0,7.598e-05,120]
[399599058,1766529313001,300.0,7.598e-05,120]
[399599059,1766529314712,300.0,7.598e-05,120]
[399599060,1766529387755,303.34575373,0.00014866,120]
[399599061,1766529387927,303.34575373,0.00015093,120]
[399599062,1766529388096,242.67660298,0.00015169,120]
[399599063,1766529388252,182.00745224,0.00015321,120]
[399599064,1766529462660,-4622.64945669,5.856e-05,2]
[399599065,1766529473027,754.71108662,5.856e-05,2]
[399599066,1766529473056,4245.28891338,5.856e-05,2]
[399599067,1766529489101,5000.0,5.856e-05,2]
[399599068,1766529497327,754.72108662,5.856e-05,2]
[399599069,1766529497355,4245.27891338,5.856e-05,2]
[399599070,1766529520347,5000.0,5.856e-05,2]
[399599071,1766529543601,754.73108662,5.856e-05,2]
[399599072,1766529543630,4245.26891338,5.856e-05,2]
[399599073,1766529566642,5000.0,5.856e-05,2]
[399599074,1766529589316,754.74108662,5.856e-05,2]
[399599075,1766529589345,4245.25891338,5.856e-05,2]
[399599076,1766529612600,5000.0,5.856e-05,2]
[399599077,1766529635509,754.75108662,5.856e-05,2]
[399599078,1766529635542,4245.24891338,5.856e-05,2]
[399599079,1766529658442,5000.0,5.856e-05,2]
[399599080,1766529681369,754.76108662,5.856e-05,2]
[399599081,1766529681396,4245.23891338,5.856e-05,2]
[399599082,1766529704768,5000.0,5.856e-05,2]
[399599084,1766529727042,754.77108662,5.856e-05,2]
[399599085,1766529727073,4245.22891338,5.856e-05,2]
[399599086,1766529731279,-505.0,5.885e-05,2]
[399599087,1766529750381,5000.0,5.885e-05,2]
[399599088,1766529774425,3990.01,5.885e-05,2]
[399599089,1766529774455,1009.99,5.885e-05,2]
[399599090,1766529797550,5000.0,5.885e-05,2]
[399599091,1766529820935,3990.02,5.885e-05,2]
[399599092,1766529820961,1009.98,5.885e-05,2]
[399599093,1766529844902,5000.0,5.885e-05,2]
[399599094,1766529867684,3990.03,5.885e-05,2]
[399599095,1766529867712,1009.97,5.885e-05,2]
[399599096,1766529882554,189.75568539,0.00013753,30]
[399599097,1766529882693,189.75568539,0.00013808,30]
[399599098,1766529882829,189.75568539,0.0001389,30]
[399599099,1766529882980,189.75568539,0.00013945,30]
[399599100,1766529883130,189.75568539,0.00014,30]
[399599101,1766529891107,5000.0,5.885e-05,2]
[399599102,1766529908454,3990.04,5.876e-05,2]
[399599103,1766529908494,10000.01,5.876e-05,2]
[399599117,1766529971986,-2478.48241656,5.76e-05,2]
[399599118,1766529972026,-43.04516688,5.818e-05,2]
[399599119,1766529974810,-237.23442512,5.789e-05,2]
[399599120,1766529974848,-4568.58631664,5.818e-05,2]
[399599121,1766529980857,-388.36851648,5.818e-05,2]
[399599122,1766529980892,-300.0,5.875e-05,2]
[399599123,1766530004100,5000.0,5.817e-05,2]
[399599124,1766530086782,180.0,5.973e-05,30]
[399599125,1766530089246,180.0,5.973e-05,30]
[399599126,1766530091576,180.0,5.973e-05,30]
[399599127,1766530093951,307.57123236,5.973e-05,30]
[399599128,1766530096260,180.0,6.57e-05,30]
[399599129,1766530098680,180.0,6.57e-05,30]
[399599130,1766530100952,205.04748824,6.57e-05,30]
[399599167,1766530232167,-884.15366601,5.759e-05,2]
[399599169,1766530232179,-619.84912104,5.759e-05,2]
[399599172,1766530232228,-261.36721127,5.759e-05,2]
[399599174,1766530232241,-3234.63000168,5.759e-05,2]
[399599176,1766530232251,-504.0,5.817e-05,2]
[399599178,1766530232263,-1200.0,5.874e-05,2]
[399599181,1766530232273,-300.0,5.874e-05,2]
[399599182,1766530232283,-300.0,5.874e-05,2]
[399599184,1766530232292,-1200.0,5.874e-05,2]
[399599186,1766530232302,-9066.15998899,5.875e-05,2]
[399599188,1766530232314,-4572.77135883,5.875e-05,2]
[399599190,1766530232324,-500.0,5.875e-05,2]
[399599192,1766530232334,-500.0,5.875e-05,2]
[399599194,1766530232344,-166.44024477,5.875e-05,2]
[399599196,1766530232354,-449.53794756,5.875e-05,2]
[399599198,1766530232364,-191.41733328,5.875e-05,2]
[399599200,1766530232373,-500.0,5.875e-05,2]
[399599201,1766530232383,-500.0,5.875e-05,2]
[399599202,1766530232393,-385.89382937,5.875e-05,2]
[399599203,1766530232404,-34748.31306153,5.876e-05,2]
[399599204,1766530232416,-1660.07122545,5.876e-05,2]
[399599555,1766530240555,-0.01039544,5.876e-05,2]
[399599609,1766530243651,-388.51668446,5.876e-05,2]
[399599632,1766530247119,-1193.04204741,5.876e-05,2]
[399599635,1766530674870,-5000.0,5.702e-05,2]
[399599636,1766530697969,0.01,5.75e-05,2]
[399599637,1766530697998,4999.99,5.75e-05,2]
[399599639,1766530738750,-5000.0,5.745e-05,2]
[399599640,1766530745628,0.01,5.76e-05,2]
[399599641,1766530745657,4999.99,5.76e-05,2]
[399599642,1766530769220,5000.0,5.76e-05,2]
[399599643,1766530792215,0.02,5.76e-05,2]
[399599644,1766530792241,4999.98,5.76e-05,2]
[399599645,1766530815707,5000.0,5.76e-05,2]
[399599646,1766530838715,0.03,5.76e-05,2]
[399599647,1766530838753,4999.97,5.76e-05,2]
[399599648,1766530861578,5000.0,5.76e-05,2]
[399599649,1766530884999,0.04,5.76e-05,2]
[399599650,1766530885032,4999.96,5.76e-05,2]
[399599651,1766530907786,5000.0,5.76e-05,2]
[399599652,1766530931265,0.05,5.76e-05,2]
[399599653,1766530931612,4999.95,5.76e-05,2]
[399599655,1766530947939,-5645.16611819,5.776e-05,2]
[399599656,1766530948151,-10000.01,5.776e-05,2]
[399599657,1766530948367,-10000.01,5.776e-05,2]
[399599658,1766530948609,-10000.01,5.776e-05,2]
[399599659,1766530948936,-10000.01,5.776e-05,2]
[399599660,1766530952782,-10000.01,5.776e-05,2]
[399599661,1766530952816,-10000.01,5.776e-05,2]
[399599662,1766530953168,-10000.01,5.776e-05,2]
[399599663,1766530953432,-10000.01,5.776e-05,2]
[399599664,1766530953723,-10000.01,5.776e-05,2]
[399599665,1766530953984,-10000.01,5.776e-05,2]
[399599666,1766530955878,-5000.0,5.719e-05,2]
[399599667,1766530956011,-0.01,5.775e-05,2]
[399599668,1766530956074,-499.99,5.775e-05,2]
[399599669,1766530956111,-316.50817134,5.775e-05,2]
[399599670,1766530956146,-153.98820326,5.775e-05,2]
[399599671,1766530956303,-8059.0372508,5.776e-05,2]
[399599672,1766530956356,-10000.01,5.776e-05,2]
[399599673,1766530958354,-10000.01,5.776e-05,2]
[399599674,1766530958507,-10000.01,5.776e-05,2]
[399599675,1766530958665,-10000.01,5.776e-05,2]
[399599676,1766530958834,-10000.01,5.776e-05,2]
[399599677,1766530958993,-10000.01,5.776e-05,2]
[399599678,1766530959198,-10000.01,5.776e-05,2]
[399599679,1766530959246,-10000.01,5.776e-05,2]
[399599680,1766530961363,-10000.01,5.776e-05,2]
[399599681,1766530961767,-10000.01,5.776e-05,2]
[399599682,1766530962371,-10000.01,5.776e-05,2]
[399599683,1766530964533,-10000.01,5.776e-05,2]
[399599684,1766530964782,-10000.01,5.776e-05,2]
[399599685,1766530964892,-10000.01,5.776e-05,2]
[399599686,1766530965031,-10000.01,5.776e-05,2]
[399599687,1766530965153,-10000.01,5.776e-05,2]
[399599688,1766530967522,-10000.01,5.776e-05,2]
[399599689,1766530967673,-10000.01,5.776e-05,2]
[399599690,1766530967809,-10000.01,5.776e-05,2]
[399599691,1766530974129,-10000.01,5.776e-05,2]
[399599692,1766530974153,-10000.01,5.776e-05,2]
[399599693,1766530974177,-10000.01,5.776e-05,2]
[399599694,1766530974196,-10000.01,5.776e-05,2]
[399599695,1766530974235,-10000.01,5.776e-05,2]
[399599696,1766531008466,273.42,0.00010559,30]
[399599697,1766531008872,546.85,0.00011062,30]
[399599698,1766531009288,820.27,0.00011565,30]
[399599699,1766531009702,1093.7,0.00012068,30]
[399599700,1766531010102,1367.12,0.00012571,30]
[399599701,1766531010504,1640.54,0.00013073,30]
[399599702,1766531010912,1913.97,0.00013576,30]
[399599703,1766531085529,231.66,9.091e-05,30]
[399599704,1766531085970,463.33,9.524e-05,30]
[399599705,1766531086348,420.44589462,9.957e-05,30]
[399599706,1766531086376,274.54410538,9.957e-05,30]
[399599707,1766531086742,926.66,0.0001039,30]
[399599708,1766531087182,1158.32,0.00010823,30]
[399599709,1766531087591,1389.99,0.00011255,30]
[399599710,1766531087987,1621.65,0.00011688,30]